{"text_format":"1","workbook":"xlsx","n_sheets":1,"sheets":["جاهز (3)"],"not_rendered":{"charts":0,"images":1,"macros":1,"external_links":0,"defined_names":1,"comments":0,"pivot_tables":0},"unopened":[],"bounds":{"document_bytes":16777216,"sheet_cells":100000,"rows_first":2000,"rows_last":500,"rows_between":2000,"halvings":0,"cell_chars":16384,"cell_head_chars":4096},"cells_cut":0,"cells_raw":0,"read":"whole","date_system":"1900"}

{"sheet":"جاهز (3)","index":0,"n_rows":27,"n_cols":22,"rows_kept":27,"cut":false,"hidden":false,"merged":[[1,1,1,10]]}
[]
[null,"منـاطــــق  "]
["أدخل كلمة البحث:","",null,null,null,"خلف"]
[]
["السلسلة","المنطقة","معلم مميز 1","معلم مميز 2","معلم مميز 3","معلم مميز 4","معلم مميز 5","معلم مميز 6","معلم مميز 7","معلم مميز 8","معلم مميز 9","معلم مميز 10"]
[" مكـة مول ","الجندويل ","المؤسسة الأستهلاكية","حديقة الشعب ","مخفر البيادر","المخابرات العامة",null,null,null,null,null,null,null,null,null,null,null,null,null,null,null,{"$f":"IF($F$3=\" \",SEARCH($F$3,$A6&\" \"&$B6&\" \"&$C6&\" \"&$D6&\" \"&$E6&\" \"&$F6&\" \"&$G6&\" \"&$H6&\" \"&$I6&\" \"&$J6&\" \"&$K6&\" \"&$L6&\" \"&$M6&\" \"&$N6&\" \"&$O6&\" \"&$P6&\" \"&$Q6&\" \"&$R6&\" \"&$S6&\" \"&$T6&\" \"&$U6))","v":false}]
[" مكـة مول ","الروابي","مقابل مجمع جبر ","شارع عبدالله غوشة","خلف ماكدونالدز","خلف سيتاون","خلف برغر كنج ",null,null,null,null,null,null,null,null,null,null,null,null,null,null,{"$f":"IF($F$3=\" \",SEARCH($F$3,$A7&\" \"&$B7&\" \"&$C7&\" \"&$D7&\" \"&$E7&\" \"&$F7&\" \"&$G7&\" \"&$H7&\" \"&$I7&\" \"&$J7&\" \"&$K7&\" \"&$L7&\" \"&$M7&\" \"&$N7&\" \"&$O7&\" \"&$P7&\" \"&$Q7&\" \"&$R7&\" \"&$S7&\" \"&$T7&\" \"&$U7))","v":false}]
[" مكـة مول ","الشمالي ","خلف شركة زين ","مستشفى فيلادلفيا","ميوزك بوكس نادي السباق","خلف مجمع جبر","خلف ميوزك بوكس",null,null,null,null,null,null,null,null,null,null,null,null,null,null,false]
[" مكـة مول ","ام السماق","خلف المدارس الأنجليزية "," دوار الخليلي","جهة مبنى مكة مول","كارفور ",null,null,null,null,null,null,null,null,null,null,null,null,null,null,null,false]
[" مكـة مول ","الكرسي","سوبر ماركت الاردن اولا ","المخابرات العامه ",null,null,null,null,null,null,null,null,null,null,null,null,null,null,null,null,null,false]
[" مكـة مول ","خلدا","إشارة البنك العربي "," فرع  كنتاكي خلدا ",null,null,null,null,null,null,null,null,null,null,null,null,null,null,null,null,null,false]
[" مكـة مول ","دابوق","اشارة النسر ","المواصفات والمقايس","كوزمو","جامع الحسين ",null,null,null,null,null,null,null,null,null,null,null,null,null,null,null,false]
[" المدينه ","رابية",null,null,null,null,null,null,null,null,null,null,null,null,null,null,null,null,null,null,null,false]
[" المدينه ","رشيد(M)","خلف مستشفى الجامعة ","خلف فندق الفنار","ضاحية الروضة",null,null,null,null,null,null,null,null,null,null,null,null,null,null,null,null,false]
[" المدينه ","ام السماق","فندق الهوليدي إن","عمان مول"," خلف ميداس للمفروشات ","مدارس الدر المنثور",null,null,null,null,null,null,null,null,null,null,null,null,null,null,null,false]
[" المدينه ","تلاع العلي ","أسواق السلطان"," خلف مطاعم الواحة"," خلف مجدي هوم",null,null,null,null,null,null,null,null,null,null,null,null,null,null,null,null,false]
[" المدينه ","الفضيلة ","خلف ماكدونالدز","طلوع هافانا"," خلف صويلح هوم","طلوع نفين",null,null,null,null,null,null,null,null,null,null,null,null,null,null,null,false]
[null,null,"اشارة النسر ",null,null,null,null,null,null,null,null,null,null,null,null,null,null,null,null,null,null,false]
[null,null,null,null,null,null,null,null,null,null,null,null,null,null,null,null,null,null,null,null,null,{"$f":"IF($F$3=\"\",\"\",SEARCH($F$3,$A19&\" \"&$B19&\" \"&$C19&\" \"&$D19&\" \"&$E19&\" \"&$F19&\" \"&$G19&\" \"&$H19&\" \"&$I19&\" \"&$J19&\" \"&$K19&\" \"&$L19&\" \"&$M19&\" \"&$N19&\" \"&$O19&\" \"&$P19&\" \"&$Q19&\" \"&$R19&\" \"&$S19&\" \"&$T19&\" \"&$U19))","v":{"$error":"#VALUE!"}}]
[null,null,null,null,null,null,null,null,null,null,null,null,null,null,null,null,null,null,null,null,null,{"$error":"#VALUE!"}]
[null,null,null,null,null,null,null,null,null,null,null,null,null,null,null,null,null,null,null,null,null,{"$error":"#VALUE!"}]
[null,null,null,"محمد محمد",null,null,null,null,null,null,null,null,null,null,null,null,null,null,null,null,null,{"$error":"#VALUE!"}]
[null,null,null,null,null,null,null,null,null,null,null,null,null,null,null,null,null,null,null,null,null,{"$error":"#VALUE!"}]
[null,null,null,null,null,null,null,null,null,null,null,null,null,null,null,null,null,null,null,null,null,{"$error":"#VALUE!"}]
[null,null,null,null,null,null,null,null,null,null,null,null,null,null,null,null,null,null,null,null,null,{"$error":"#VALUE!"}]
[null,null,null,null,null,null,null,null,null,null,null,null,null,null,null,null,null,null,null,null,null,{"$error":"#VALUE!"}]
[null,null,null,null,null,null,null,null,null,null,null,null,null,null,null,null,null,null,null,null,null,{"$error":"#VALUE!"}]